fUSD/lending_fUSD_20250111
["ID","MTS","AMOUNT","RATE_DAILY","PERIOD"]
[348483443,1736565052506,-546.621205,0.00010546,2]
[348483444,1736565052516,-835.34,0.00010546,2]
[348483445,1736565052526,-1790.04,0.00010546,2]
[348483446,1736565052536,-880.38,0.00010546,2]
[348483447,1736565052546,-500.0,0.00010546,2]
[348483448,1736565052556,-1052.43,0.00010546,2]
[348483449,1736565052566,-500.0,0.00010546,2]
[348483450,1736565052576,-500.0,0.00010546,2]
[348483451,1736565052587,-1709.92,0.00010546,2]
[348483452,1736565052597,-1765.87,0.00010546,2]
[348483453,1736565052608,-500.0,0.00010546,2]
[348483454,1736565052618,-500.0,0.00010546,2]
[348483455,1736565052627,-500.0,0.00010546,2]
[348483456,1736565052638,-515.46,0.00010546,2]
[348483457,1736565052648,-550.91,0.00010546,2]
[348483458,1736565052659,-1616.11,0.00010546,2]
[348483459,1736565052668,-500.0,0.00010546,2]
[348483460,1736565052678,-500.0,0.00010546,2]
[348483461,1736565052687,-500.0,0.00010546,2]
[348483462,1736565052697,-500.0,0.00010546,2]
[348483463,1736565052707,-1922.74,0.00010546,2]
[348483464,1736565052717,-1366.2,0.00010546,2]
[348483465,1736565052727,-1091.76,0.00010546,2]
[348483466,1736565052737,-679.75,0.00010546,2]
[348483467,1736565052746,-1078.15,0.00010546,2]
[348483468,1736565052756,-500.0,0.00010546,2]
[348483469,1736565052766,-1763.93,0.00010546,2]
[348483470,1736565052775,-1481.41,0.00010546,2]
[348483471,1736565052849,-1769.16,0.00010546,2]
[348483472,1736565052861,-813.64,0.00010546,2]
[348483473,1736565052870,-805.55,0.00010546,2]
[348483474,1736565052880,-500.0,0.00010546,2]
[348483475,1736565052890,-500.0,0.00010546,2]
[348483476,1736565052899,-500.0,0.00010546,2]
[348483477,1736565052908,-500.0,0.00010546,2]
[348483478,1736565052917,-500.0,0.00010546,2]
[348483479,1736565052928,-500.0,0.00010546,2]
[348483480,1736565052937,-1660.68,0.00010546,2]
[348483481,1736565052946,-500.0,0.00010546,2]
[348483482,1736565052956,-500.0,0.00010546,2]
[348483483,1736565052965,-728.62,0.00010546,2]
[348483484,1736565052975,-500.0,0.00010546,2]
[348483485,1736565052985,-1836.55,0.00010546,2]
[348483486,1736565052994,-500.0,0.00010546,2]
[348483487,1736565053004,-500.0,0.00010546,2]
[348483488,1736565053015,-683.44,0.00010546,2]
[348483489,1736565053025,-500.0,0.00010546,2]
[348483490,1736565053035,-500.0,0.00010546,2]
[348483491,1736565053045,-500.0,0.00010547,2]
[348483492,1736565053056,-682.78,0.00010547,2]
[348483493,1736565053066,-1031.74,0.00010547,2]
[348483494,1736565053076,-500.0,0.00010547,2]
[348483495,1736565053086,-987.04,0.00010547,2]
[348483496,1736565053095,-619.89,0.00010547,2]
[348483497,1736565053106,-1826.07,0.00010547,2]
[348483498,1736565053116,-500.0,0.00010547,2]
[348483499,1736565053125,-447.04098635,0.00010547,2]
[348483500,1736565053135,-500.0,0.00010547,2]
[348483501,1736565053145,-733.86,0.00010547,2]
[348483502,1736565053155,-668.94,0.00010547,2]
[348483503,1736565053165,-500.0,0.00010547,2]
[348483504,1736565053175,-1681.86,0.00010547,2]
[348483505,1736565053185,-500.0,0.00010547,2]
[348483506,1736565053194,-1863.7,0.00010547,2]
[348483507,1736565053204,-500.0,0.00010547,2]
[348483508,1736565053213,-500.0,0.00010547,2]
[348483509,1736565053222,-500.0,0.00010547,2]
[348483510,1736565053232,-500.0,0.00010547,2]
[348483511,1736565053241,-1106.71,0.00010547,2]
[348483512,1736565053251,-944.69,0.00010547,2]
[348483513,1736565053261,-500.0,0.00010547,2]
[348483514,1736565053272,-500.0,0.00010547,2]
[348483515,1736565053282,-500.0,0.00010547,2]
[348483516,1736565053291,-1791.18,0.00010547,2]
[348483517,1736565053301,-500.0,0.00010547,2]
[348483518,1736565053311,-771.15,0.00010547,2]
[348483519,1736565053320,-827.79,0.00010547,2]
[348483520,1736565053330,-1619.77,0.00010547,2]
[348483521,1736565053340,-824.6,0.00010547,2]
[348483522,1736565053350,-830.27,0.00010547,2]
[348483523,1736565053361,-500.0,0.00010547,2]
[348483524,1736565053370,-884.73,0.00010547,2]
[348483525,1736565053380,-617.62,0.00010547,2]
[348483526,1736565053390,-537.37,0.00010547,2]
[348483527,1736565053399,-956.11,0.00010547,2]
[348483528,1736565053408,-1380.47,0.00010547,2]
[348483529,1736565053418,-500.0,0.00010547,2]
[348483530,1736565053428,-734.6,0.00010547,2]
[348483531,1736565053437,-740.46,0.00010547,2]
[348483532,1736565053447,-2082.49,0.00010547,2]
[348483533,1736565053458,-1008.0,0.000106,2]
[348483534,1736565053467,-3319.829,0.00010619,2]
[348483535,1736565053477,-150.75,0.00010658,2]
[348483536,1736565053487,-150.0,0.00010658,2]
[348483537,1736565053498,-150.0,0.00010658,2]
[348483538,1736565053507,-204.32652902,0.00010689,2]
[348483539,1736565053516,-1000.0,0.000107,2]
[348483540,1736565053526,-182.5157555,0.00010721,2]
[348483541,1736565053536,-500.0,0.0001077,2]
[348483542,1736565053545,-182.5157555,0.00010789,2]
[348483543,1736565053555,-52433.91,0.000108,2]
[348483544,1736565053564,-1000.0,0.000108,2]
[348483545,1736565053574,-1000.0,0.00010803,2]
[348483546,1736565053583,-1528.3391736,0.00010813,2]
[348483547,1736565053592,-2752.4879593,0.00010813,2]
[348483548,1736565053601,-2921.8068605,0.00010813,2]
[348483549,1736565053610,-1336.7036374,0.00010813,2]
[348483550,1736565053620,-24685.37,0.0001082,2]
[348483551,1736565053629,-500.0,0.0001082,2]
[348483552,1736565053639,-500.0,0.0001082,2]
[348483553,1736565053648,-500.0,0.0001082,2]
[348483554,1736565053657,-500.0,0.0001082,2]
[348483555,1736565053669,-500.0,0.0001082,2]
[348483556,1736565053679,-500.0,0.0001082,2]
[348483557,1736565053690,-662.24,0.0001082,2]
[348483558,1736565053700,-500.0,0.0001082,2]
[348483559,1736565053710,-624.76,0.0001082,2]
[348483560,1736565053720,-500.0,0.0001082,2]
[348483561,1736565053730,-500.0,0.0001082,2]
[348483562,1736565053741,-500.0,0.0001082,2]
[348483563,1736565053750,-500.0,0.0001082,2]
[348483564,1736565053759,-500.0,0.0001082,2]
[348483565,1736565053769,-500.0,0.0001082,2]
[348483566,1736565053778,-703.57,0.0001082,2]
[348483567,1736565053787,-500.0,0.0001082,2]
[348483568,1736565053796,-500.0,0.0001082,2]
[348483569,1736565053805,-500.0,0.0001082,2]
[348483570,1736565053815,-809.26,0.0001082,2]
[348483571,1736565053824,-500.0,0.0001082,2]
[348483572,1736565053833,-500.0,0.0001082,2]
[348483573,1736565053845,-500.0,0.0001082,2]
[348483574,1736565053855,-500.0,0.0001082,2]
[348483575,1736565053865,-500.0,0.0001082,2]
[348483576,1736565053874,-500.0,0.0001082,2]
[348483577,1736565053883,-318.09244824,0.0001082,2]
[348483578,1736565053894,-1812.22,0.0001082,2]
[348483579,1736565053903,-500.0,0.0001082,2]
[348483580,1736565053913,-500.0,0.0001082,2]
[348483581,1736565053925,-500.0,0.0001082,2]
[348483582,1736565053934,-500.0,0.0001082,2]
[348483583,1736565053944,-2529.31,0.0001082,2]
[348483584,1736565053953,-500.0,0.0001082,2]
[348483585,1736565053963,-557.08,0.0001082,2]
[348483586,1736565053974,-500.0,0.0001082,2]
[348483587,1736565053984,-914.07,0.0001082,2]
[348483588,1736565053994,-392.39318239,0.0001082,2]
[348483589,1736565054004,-1056.13,0.0001082,2]
[348483590,1736565054014,-500.0,0.0001082,2]
[348483591,1736565054024,-500.0,0.0001082,2]
[348483592,1736565054034,-500.0,0.0001082,2]
[348483593,1736565054044,-883.61,0.0001082,2]
[348483594,1736565054055,-3010.89,0.0001082,2]
[348483595,1736565054066,-491.955418,0.0001082,2]
[348483596,1736565054076,-500.0,0.0001082,2]
[348483597,1736565054085,-455.67310169,0.0001082,2]
[348483598,1736565054095,-500.0,0.0001082,2]
[348483599,1736565054106,-500.0,0.0001082,2]
[348483600,1736565054115,-223.56559954,0.0001082,2]
[348483601,1736565054125,-500.0,0.0001082,2]
[348483602,1736565054135,-629.45905335,0.0001082,2]
[348483603,1736565054145,-500.0,0.0001082,2]
[348483604,1736565054154,-549.51121954,0.0001082,2]
[348483605,1736565054163,-500.0,0.0001082,2]
[348483606,1736565054173,-574.59,0.0001082,2]
[348483607,1736565054182,-546.621205,0.0001082,2]
[348483608,1736565054191,-835.34,0.0001082,2]
[348483609,1736565054202,-1790.04,0.0001082,2]
[348483610,1736565054212,-880.38,0.0001082,2]
[348483611,1736565054221,-500.0,0.0001082,2]
[348483612,1736565054231,-1052.43,0.0001082,2]
[348483613,1736565054241,-500.0,0.0001082,2]
[348483614,1736565054251,-500.0,0.0001082,2]
[348483615,1736565054261,-1709.92,0.0001082,2]
[348483616,1736565054270,-1765.87,0.0001082,2]
[348483617,1736565054280,-500.0,0.0001082,2]
[348483618,1736565054291,-500.0,0.0001082,2]
[348483619,1736565054301,-500.0,0.0001082,2]
[348483620,1736565054311,-515.46,0.0001082,2]
[348483621,1736565054321,-550.91,0.0001082,2]
[348483622,1736565054331,-1616.11,0.0001082,2]
[348483623,1736565054340,-500.0,0.0001082,2]
[348483624,1736565054350,-500.0,0.0001082,2]
[348483625,1736565054360,-500.0,0.0001082,2]
[348483626,1736565054369,-500.0,0.0001082,2]
[348483627,1736565054378,-1922.74,0.0001082,2]
[348483628,1736565054389,-1366.2,0.0001082,2]
[348483629,1736565054399,-1091.76,0.0001082,2]
[348483630,1736565054409,-679.75,0.0001082,2]
[348483631,1736565054418,-1078.15,0.0001082,2]
[348483632,1736565054427,-500.0,0.0001082,2]
[348483633,1736565054438,-1481.41,0.0001082,2]
[348483634,1736565054447,-1769.16,0.0001082,2]
[348483635,1736565054458,-813.64,0.0001082,2]
[348483636,1736565054467,-805.55,0.0001082,2]
[348483637,1736565054477,-500.0,0.0001082,2]
[348483638,1736565054486,-500.0,0.0001082,2]
[348483639,1736565054496,-500.0,0.0001082,2]
[348483640,1736565054505,-500.0,0.0001082,2]
[348483641,1736565054513,-243.00645779,0.0001082,2]
[348483642,1736565054522,-500.0,0.0001082,2]
[348483643,1736565054532,-1660.68,0.0001082,2]
[348483644,1736565054541,-607.3955076,0.0001082,2]
[348483645,1736565054550,-500.0,0.0001082,2]
[348483646,1736565054559,-728.62,0.0001082,2]
[348483647,1736565054569,-500.0,0.0001082,2]
[348483648,1736565054578,-1836.55,0.0001082,2]
[348483649,1736565054587,-500.0,0.0001082,2]
[348483650,1736565054597,-683.44,0.0001082,2]
[348483651,1736565054606,-500.0,0.0001082,2]
[348483652,1736565054616,-500.0,0.0001082,2]
[348483653,1736565054626,-500.0,0.0001082,2]
[348483654,1736565054635,-500.0,0.00010821,2]
[348483655,1736565054644,-682.78,0.00010821,2]
[348483656,1736565054654,-1031.74,0.00010821,2]
[348483657,1736565054664,-500.0,0.00010821,2]
[348483658,1736565054674,-162.76234186,0.00010821,2]
[348483659,1736565054689,-824.27765814,0.00010821,2]
[348483660,1736565054698,-306.29429236,0.00010821,2]
[348483661,1736565054711,-313.59570764,0.00010821,2]
[348483662,1736565054720,-803.18749881,0.00010821,2]
[348483663,1736565939072,778.83,8.219e-05,2]
[348483667,1736566231962,-211.8,9.579e-05,2]
[348483669,1736566231971,-225.09999985,9.6e-05,3]
[348483678,1736566232182,-374.90000015,9.6e-05,3]
[348483679,1736566232192,-1000.0,9.641e-05,2]
[348483680,1736566232203,-250.0,9.672e-05,2]
[348483681,1736566232216,-1300.0,9.7e-05,3]
[348483682,1736566232227,-504.75,9.725e-05,2]
[348483683,1736566232237,-170.31,9.774e-05,2]
[348483684,1736566232247,-2000.0,9.8e-05,3]
[348483685,1736566232256,-196.69,9.854e-05,2]
[348483686,1736566232267,-1000.0,9.898e-05,2]
[348483687,1736566232277,-300.0,9.899e-05,2]
[348483688,1736566232287,-2600.0,9.9e-05,3]
[348483689,1736566232297,-5000.0,9.9e-05,2]
[348483690,1736566232306,-2500.0,9.9e-05,2]
[348483691,1736566232316,-150.0,9.997e-05,2]
[348483692,1736566232326,-502.5568984,9.998e-05,2]
[348483693,1736566232335,-525.43422418,9.998e-05,2]
[348483694,1736566232345,-503.6632357,9.998e-05,2]
[348483695,1736566232356,-513.46220202,9.998e-05,2]
[348483696,1736566232365,-509.43576043,9.998e-05,2]
[348483697,1736566232374,-167.6308247,9.998e-05,2]
[348483698,1736566232386,-335.44148923,9.998e-05,2]
[348483699,1736566232396,-215.55558778,9.998e-05,2]
[348483700,1736566232407,-289.74538156,9.998e-05,2]
[348483701,1736566232418,-500.0,9.998e-05,2]
[348483702,1736566232428,-500.0,9.998e-05,2]
[348483703,1736566232438,-221.13439421,9.998e-05,2]
[348483704,1736566232451,-285.6433021,9.998e-05,2]
[348483705,1736566232460,-226.75985814,9.998e-05,2]
[348483706,1736566232472,-273.24014186,9.998e-05,2]
[348483707,1736566232483,-507.4631291,9.998e-05,2]
[348483708,1736566232493,-162.73922904,9.998e-05,2]
[348483709,1736566232535,-337.26077096,9.998e-05,2]
[348483710,1736566232549,-198.2767884,9.998e-05,2]
[348483711,1736566232561,-301.7232116,9.998e-05,2]
[348483712,1736566232571,-261.51673301,9.998e-05,2]
[348483713,1736566232584,-238.48326699,9.998e-05,2]
[348483714,1736566232594,-500.0,9.998e-05,2]
[348483715,1736566232604,-500.0,9.998e-05,2]
[348483716,1736566232614,-500.0,9.998e-05,2]
[348483717,1736566232624,-500.0,9.998e-05,2]
[348483719,1736566232633,-500.0,9.998e-05,2]
[348483720,1736566232643,-500.0,9.998e-05,2]
[348483722,1736566232652,-500.0,9.998e-05,2]
[348483724,1736566232662,-500.0,9.998e-05,2]
[348483726,1736566232671,-500.0,9.998e-05,2]
[348483728,1736566232681,-500.0,9.998e-05,2]
[348483730,1736566232690,-500.0,9.998e-05,2]
[348483732,1736566232700,-440.0,9.998e-05,2]
[348483734,1736566232710,-509.1113502,9.998e-05,2]
[348483736,1736566232719,-500.0,9.998e-05,2]
[348483738,1736566232729,-500.0,9.998e-05,2]
[348483740,1736566232738,-500.0,9.998e-05,2]
[348483742,1736566232748,-259.10827542,9.998e-05,2]
[348483744,1736566232757,-1111.26,9.998e-05,2]
[348483746,1736566232767,-500.0,9.998e-05,2]
[348483748,1736566232777,-500.0,9.998e-05,2]
[348483750,1736566232787,-500.0,9.998e-05,2]
[348483752,1736566232797,-500.0,9.998e-05,2]
[348483754,1736566232807,-500.0,9.998e-05,2]
[348483756,1736566232816,-500.0,9.998e-05,2]
[348483758,1736566232826,-2055.79,9.998e-05,2]
[348483760,1736566232835,-500.0,9.998e-05,2]
[348483762,1736566232844,-500.0,9.998e-05,2]
[348483764,1736566232853,-500.0,9.998e-05,2]
[348483766,1736566232863,-500.0,9.998e-05,2]
[348483768,1736566232872,-500.0,9.998e-05,2]
[348483770,1736566232881,-500.0,9.998e-05,2]
[348483772,1736566232891,-500.0,9.998e-05,2]
[348483774,1736566232901,-510.55,9.998e-05,2]
[348483776,1736566232910,-500.0,9.998e-05,2]
[348483778,1736566232920,-500.0,9.998e-05,2]
[348483780,1736566232929,-500.0,9.998e-05,2]
[348483781,1736566232938,-156.99427649,9.998e-05,2]
[348483784,1736566232952,-343.00572351,9.998e-05,2]
[348483786,1736566232961,-149.18274543,9.998e-05,2]
[348483788,1736566232973,-879.02725457,9.998e-05,2]
[348483790,1736566232982,-500.0,9.998e-05,2]
[348483792,1736566232992,-727.92,9.998e-05,2]
[348483794,1736566233001,-899.54,9.998e-05,2]
[348483796,1736566233012,-1139.39,9.998e-05,2]
[348483798,1736566233021,-1587.07,9.998e-05,2]
[348483800,1736566233031,-1093.02,9.998e-05,2]
[348483802,1736566233040,-835.4,9.998e-05,2]
[348483804,1736566233049,-872.13,9.998e-05,2]
[348483806,1736566233059,-2371.53,9.998e-05,2]
[348483808,1736566233069,-988.73,9.998e-05,2]
[348483810,1736566233079,-1061.36,9.998e-05,2]
[348483812,1736566233088,-788.98,9.999e-05,2]
[348483814,1736566233098,-574.37,9.999e-05,2]
[348483816,1736566233108,-500.0,9.999e-05,2]
[348483818,1736566233118,-521.48079407,9.999e-05,2]
[348483820,1736566233128,-735.58,9.999e-05,2]
[348483822,1736566233138,-500.0,9.999e-05,2]
[348483824,1736566233149,-500.0,9.999e-05,2]
[348483826,1736566233159,-586.31,9.999e-05,2]
[348483828,1736566233168,-978.64,9.999e-05,2]
[348483830,1736566233178,-1818.07,9.999e-05,2]
[348483832,1736566233188,-2935.18,9.999e-05,2]
[348483834,1736566233198,-500.0,9.999e-05,2]
[348483836,1736566233210,-500.0,9.999e-05,2]
[348483838,1736566233222,-500.0,9.999e-05,2]
[348483840,1736566233232,-1569.9,9.999e-05,2]
[348483842,1736566233241,-500.0,9.999e-05,2]
[348483843,1736566233251,-600.56,9.999e-05,2]
[348483845,1736566233261,-500.0,9.999e-05,2]
[348483847,1736566233270,-800.09,9.999e-05,2]
[348483849,1736566233280,-507.40154507,9.999e-05,2]
[348483851,1736566233290,-1262.47,9.999e-05,2]
[348483853,1736566233299,-500.0,9.999e-05,2]
[348483854,1736566233309,-1591.88,9.999e-05,2]
[348483855,1736566233319,-595.75,9.999e-05,2]
[348483856,1736566233329,-519.75,9.999e-05,2]
[348483857,1736566233339,-875.54,9.999e-05,2]
[348483858,1736566233349,-547.79,9.999e-05,2]
[348483859,1736566233359,-500.0,9.999e-05,2]
[348483860,1736566233368,-1670.89,9.999e-05,2]
[348483861,1736566233379,-500.0,9.999e-05,2]
[348483862,1736566233388,-772.82,9.999e-05,2]
[348483863,1736566233398,-503.90661548,9.999e-05,2]
[348483864,1736566233408,-509.87140563,9.999e-05,2]
[348483865,1736566233418,-507.31216062,9.999e-05,2]
[348483866,1736566233429,-518.82822656,9.999e-05,2]
[348483867,1736566233439,-500.0,9.999e-05,2]
[348483868,1736566233450,-500.0,9.999e-05,2]
[348483869,1736566233460,-508.17011853,9.999e-05,2]
[348483870,1736566233469,-500.0,9.999e-05,2]
[348483871,1736566233480,-507.93893162,9.999e-05,2]
[348483872,1736566233490,-505.20970618,9.999e-05,2]
[348483873,1736566233500,-500.0,9.999e-05,2]
[348483874,1736566233511,-507.19160769,9.999e-05,2]
[348483875,1736566233521,-500.0,9.999e-05,2]
[348483876,1736566233531,-514.83234658,9.999e-05,2]
[348483877,1736566233544,-500.0,9.999e-05,2]
[348483878,1736566233554,-500.0,9.999e-05,2]
[348483879,1736566233564,-1341.19,9.999e-05,2]
[348483880,1736566233574,-506.27604051,9.999e-05,2]
[348483881,1736566233585,-510.95587114,9.999e-05,2]
[348483882,1736566233596,-281.30593698,9.999e-05,2]
[348483883,1736566233606,-49667.19,0.0001,2]
[348483884,1736566233617,-109566.80001085,0.0001,2]
[348483885,1736566237827,-1000.0,9.9e-05,2]
[348483886,1736566237837,-661.47,9.999e-05,2]
[348483887,1736566237847,-514.59662064,9.999e-05,2]
[348483888,1736566237856,-500.0,9.999e-05,2]
[348483889,1736566237866,-509.35178671,9.999e-05,2]
[348483890,1736566237875,-500.0,9.999e-05,2]
[348483891,1736566237891,-203.15822531,9.999e-05,2]
[348483892,1736566237901,-12229.62191576,0.0001,2]
[348483893,1736566237914,-562.48,0.0001,2]
[348483894,1736566237925,-16463.6831163,0.0001,2]
[348483895,1736566237937,-6587.86593026,0.0001,2]
[348483896,1736566238038,-760.39087322,0.0001,2]
[348483897,1736566238051,-1453.28225103,0.0001,2]
[348483898,1736566238063,-432.6490037,0.0001,2]
[348483899,1736566238076,-9189.04492724,0.0001,2]
[348483900,1736566238091,-655.33345653,0.0001,2]
[348483901,1736566238103,-1017.29990683,0.0001,2]
[348483903,1736566238251,-510.27323656,9.999e-05,2]
[348483905,1736566238260,-158.93276345,0.0001,2]
[348483907,1736566238272,-2038.1,0.0001,2]
[348483912,1736566239954,-8458.8754854,0.0001,2]
[348483913,1736566239967,-9096.64373114,0.0001,2]
[348483915,1736566239984,-8947.21879473,0.0001,2]
[348483917,1736566239996,-8943.78386462,0.0001,2]
[348483918,1736566240008,-9077.54866152,0.0001,2]
[348483919,1736566240019,-8943.84023489,0.0001,2]
[348483920,1736566240186,-2771.23937551,0.0001,2]
[348483921,1736566240198,-624.79062538,0.0001,2]
[348483922,1736566240211,-1085892.19317029,0.0001,2]
[348483923,1736566240472,-2273.28387441,0.0001,2]
[348483932,1736566242961,-500.0,9.999e-05,2]
[348483933,1736566242972,-8758.08201931,0.0001,2]
[348483934,1736566243177,-500.0,9.999e-05,2]
[348483935,1736566243187,-291.46804647,0.0001,2]
[348483936,1736566243199,-1406.09166,0.0001,2]
[348483937,1736566243211,-280.1210306,0.0001,2]
[348483938,1736566243223,-2516.52984446,0.0001,2]
[348483939,1736566243389,-1228.49761,0.0001,2]
[348483940,1736566243401,-570.916685,0.0001,2]
[348483941,1736566243413,-657.41777,0.0001,2]
[348483942,1736566243424,-360.26241,0.0001,2]
[348483943,1736566243436,-3654.48437206,0.0001,2]
[348483945,1736566246008,-500.0,9.999e-05,2]
[348483946,1736566246019,-503.86641234,9.999e-05,2]
[348483947,1736566246028,-879.84570166,0.0001,2]
[348483948,1736566246040,-3785.15416186,0.0001,2]
[348483949,1736566246150,-409282.13646575,0.0001,2]
[348483950,1736566246162,-2852.5,0.0001,2]
[348483951,1736566246173,-534.36519297,0.0001,2]
[348483952,1736566246185,-1413.51905588,0.0001,2]
[348483953,1736566246294,-4109.6526662,0.0001,2]
[348483955,1736566915303,784.37,8.219e-05,2]
[348483956,1736567432310,-200.0,8.998e-05,2]
[348483957,1736567432320,-242.98,9.003e-05,2]
[348483958,1736567432330,-308.38,9.031e-05,2]
[348483959,1736567432339,-250.0,9.101e-05,2]
[348483960,1736567432349,-403.8,9.115e-05,2]
[348483961,1736567432359,-282.92,9.308e-05,2]
[348483962,1736567432369,-1000.0,9.387e-05,2]
[348483963,1736567432378,-250.0,9.469e-05,2]
[348483964,1736567432388,-22655.14618982,9.469e-05,2]
[348483965,1736567432399,-1234.85381018,9.469e-05,2]
[348483966,1736567432410,-539.36,9.494e-05,2]
[348483967,1736567432421,-163.42352445,9.53e-05,2]
[348483968,1736567432435,-296.68647555,9.53e-05,2]
[348483969,1736567432445,-22.81352445,9.552e-05,2]
[348483977,1736567438472,-426.6460789,9.552e-05,2]
[348483978,1736567440512,-47.16779465,9.552e-05,2]
[348483979,1736567440523,-158.525297,9.552e-05,2]
[348483980,1736567440532,-158.585778,9.552e-05,2]
[348483981,1736567440542,-73.72010446,9.7e-05,3]
[348483982,1736567440554,-226.27989554,9.7e-05,3]
[348483983,1736567440564,-496.627398,9.701e-05,2]
[348483984,1736567440574,-600.0,9.8e-05,3]
[348483985,1736567440583,-75.63260824,9.826e-05,2]
[348483986,1736567440595,-273.1445,9.826e-05,2]
[348483987,1736567440607,-147.85028976,9.826e-05,2]
[348483988,1736567440617,-500.0,9.836e-05,2]
[348483989,1736567440627,-300.22,9.852e-05,2]
[348483990,1736567440637,-150.0,9.862e-05,2]
[348483991,1736567440647,-951.82968096,9.863e-05,2]
[348483992,1736567440659,-915.34000024,9.863e-05,2]
[348483993,1736567440670,-3939.8303188,9.863e-05,2]
[348483994,1736567440680,-426.42853738,9.881e-05,2]
[348483995,1736567440690,-1000.0,9.9e-05,3]
[348483996,1736567440699,-6566.82392635,9.973e-05,2]
[348483998,1736567443331,-393.29595266,9.973e-05,2]
[348483999,1736567443600,-1764.09695905,9.973e-05,2]
[348484008,1736567446558,-589.516293,9.552e-05,2]
[348484010,1736567446568,-503.88881622,9.973e-05,2]
[348484012,1736567446580,-1171.11637479,9.973e-05,2]
[348484014,1736567446591,-532.77797093,9.973e-05,2]
[348484016,1736567446601,-496.627398,9.975e-05,2]
[348484018,1736567446611,-3081.487,9.988e-05,2]
[348484020,1736567446621,-220.94,9.988e-05,2]
[348484022,1736567446631,-500.0,9.997e-05,2]
[348484024,1736567446640,-595.03610924,9.997e-05,2]
[348484025,1736567446651,-500.0,9.997e-05,2]
[348484026,1736567446661,-500.0,9.997e-05,2]
[348484027,1736567446671,-500.0,9.997e-05,2]
[348484028,1736567446681,-524.41710712,9.997e-05,2]
[348484029,1736567446691,-500.0,9.997e-05,2]
[348484030,1736567446700,-2050.54773847,9.998e-05,3]
[348484031,1736567869415,788.86,8.219e-05,2]
[348484040,1736568632126,-267.87,8.807e-05,2]
[348484041,1736568632138,-250.0,8.822e-05,2]
[348484042,1736568632150,-185.26,8.849e-05,2]
[348484043,1736568632162,-1000.0,9.01e-05,2]
[348484044,1736568632174,-200.0,9.054e-05,2]
[348484045,1736568632185,-1346.05,9.124e-05,2]
[348484046,1736568632197,-250.0,9.124e-05,2]
[348484047,1736568632209,-186.86799556,9.124e-05,2]
[348484048,1736568632221,-300.0,9.148e-05,2]
[348484049,1736568632233,-13955.0079679,9.149e-05,2]
[348484050,1736568632247,-3326.2520321,9.149e-05,2]
[348484051,1736568632259,-1447.14,9.15e-05,2]
[348484052,1736568632270,-271.39,9.15e-05,2]
[348484053,1736568632281,-625.96,9.152e-05,2]
[348484054,1736568632292,-168.21,9.16e-05,2]
[348484055,1736568632304,-1354.04,9.278e-05,2]
[348484056,1736568632315,-502.0,9.589e-05,2]
[348484057,1736568632326,-207.07,9.684e-05,2]
[348484058,1736568632338,-500.0,9.699e-05,2]
[348484059,1736568632349,-400.0,9.7e-05,3]
[348484060,1736568632361,-150.0,9.795e-05,2]
[348484061,1736568632373,-800.0,9.8e-05,3]
[348484062,1736568632384,-1000.0,9.8e-05,2]
[348484063,1736568632396,-1715.0,9.8e-05,2]
[348484064,1736568632410,-150.0,9.85e-05,2]
[348484065,1736568632422,-150.0,9.891e-05,2]
[348484066,1736568632434,-5000.0,9.897e-05,2]
[348484067,1736568632445,-6068.93093001,9.898e-05,2]
[348484068,1736568632506,-38203.11246999,9.898e-05,2]
[348484069,1736568632518,-215.5316,9.898e-05,2]
[348484070,1736568632529,-1200.0,9.9e-05,3]
[348484071,1736568632540,-206.7300537,9.941e-05,2]
[348484072,1736568632552,-500.0,9.973e-05,2]